[Event "Titled Tuesday Blitz January 17 Early 2023"]
[White "Bazarov, Konstantin"]
[Black "Atabayev, Saparmyrat"]
[WhiteFideId "4137000"]
[BlackFideId "14000571"]
[WhiteElo "2235"]
[BlackElo "2448"]
[Result "1/2-1/2"]
[Round "04"]
[TimeControl "180+2"]
[Date "2023.01.17"]
[WhiteClock "0:00:14"]
[BlackClock "0:00:16"]

1. d4 {[%clk 0:03:00]}  Nf6 {[%clk 0:02:58]} 2. c4 {[%clk 0:03:00]}  g6 {[%clk 0:02:57]} 3. Nc3 {[%clk 0:03:00]}  d5 {[%clk 0:02:58]} 4. Bg5 {[%clk 0:02:59]}  Ne4 {[%clk 0:02:57]} 5. Bh4 {[%clk 0:02:59]}  c5 {[%clk 0:02:52]} 6. e3 {[%clk 0:02:53]}  Qa5 {[%clk 0:02:47]} 7. Qb3 {[%clk 0:02:46]}  cxd4 {[%clk 0:02:30]} 8. exd4 {[%clk 0:02:43]}  Nc6 {[%clk 0:02:29]} 9. Nf3 {[%clk 0:02:42]}  Bg7 {[%clk 0:02:24]} 10. cxd5 {[%clk 0:02:36]}  Nxc3 {[%clk 0:02:07]} 11. bxc3 {[%clk 0:01:49]}  Nxd4 {[%clk 0:01:50]} 12. Nxd4 {[%clk 0:01:47]}  Bxd4 {[%clk 0:01:51]} 13. Bb5+ {[%clk 0:01:47]}  Kf8 {[%clk 0:01:50]} 14. Rc1 {[%clk 0:01:39]}  a6 {[%clk 0:01:40]} 15. Bd3 {[%clk 0:01:30]}  Bf6 {[%clk 0:01:38]} 16. Bxf6 {[%clk 0:01:27]}  exf6 {[%clk 0:01:38]} 17. O-O {[%clk 0:01:27]}  Kg7 {[%clk 0:01:39]} 18. c4 {[%clk 0:01:26]}  Qc5 {[%clk 0:01:38]} 19. Rfe1 {[%clk 0:01:23]}  Rb8 {[%clk 0:01:30]} 20. Rb1 {[%clk 0:01:20]}  Bd7 {[%clk 0:01:18]} 21. Qb6 {[%clk 0:01:14]}  Rhc8 {[%clk 0:01:16]} 22. Qxc5 {[%clk 0:01:11]}  Rxc5 {[%clk 0:01:16]} 23. Re7 {[%clk 0:01:12]}  Bf5 {[%clk 0:00:55]} 24. Bxf5 {[%clk 0:01:10]}  gxf5 {[%clk 0:00:56]} 25. Rbxb7 {[%clk 0:01:01]}  Rxb7 {[%clk 0:00:56]} 26. Rxb7 {[%clk 0:01:01]}  Rxc4 {[%clk 0:00:57]} 27. g3 {[%clk 0:00:59]}  Rc2 {[%clk 0:00:55]} 28. a4 {[%clk 0:00:57]}  Rc4 {[%clk 0:00:55]} 29. d6 {[%clk 0:00:44]}  Rxa4 {[%clk 0:00:54]} 30. d7 {[%clk 0:00:44]}  Rd4 {[%clk 0:00:55]} 31. Ra7 {[%clk 0:00:43]}  Kg6 {[%clk 0:00:55]} 32. Kg2 {[%clk 0:00:36]}  a5 {[%clk 0:00:54]} 33. Kf3 {[%clk 0:00:34]}  a4 {[%clk 0:00:55]} 34. Ke3 {[%clk 0:00:35]}  Rd1 {[%clk 0:00:54]} 35. Ke2 {[%clk 0:00:34]}  Rd6 {[%clk 0:00:53]} 36. Ke3 {[%clk 0:00:31]}  a3 {[%clk 0:00:54]} 37. Rxa3 {[%clk 0:00:29]}  Rxd7 {[%clk 0:00:54]} 38. Ra8 {[%clk 0:00:28]}  Re7+ {[%clk 0:00:53]} 39. Kf3 {[%clk 0:00:28]}  Re4 {[%clk 0:00:47]} 40. Rg8+ {[%clk 0:00:27]}  Kh6 {[%clk 0:00:39]} 41. h3 {[%clk 0:00:26]}  Rb4 {[%clk 0:00:39]} 42. Rc8 {[%clk 0:00:23]}  Kg7 {[%clk 0:00:38]} 43. Rc5 {[%clk 0:00:23]}  Kg6 {[%clk 0:00:38]} 44. Rc8 {[%clk 0:00:23]}  h6 {[%clk 0:00:38]} 45. Rg8+ {[%clk 0:00:22]}  Kh7 {[%clk 0:00:39]} 46. Rc8 {[%clk 0:00:22]}  Ra4 {[%clk 0:00:39]} 47. Rc7 {[%clk 0:00:22]}  Kg6 {[%clk 0:00:39]} 48. Rc8 {[%clk 0:00:22]}  Ra3+ {[%clk 0:00:39]} 49. Kf4 {[%clk 0:00:21]}  Ra4+ {[%clk 0:00:39]} 50. Kf3 {[%clk 0:00:21]}  f4 {[%clk 0:00:40]} 51. gxf4 {[%clk 0:00:20]}  Ra3+ {[%clk 0:00:38]} 52. Kg2 {[%clk 0:00:17]}  Kf5 {[%clk 0:00:38]} 53. Rh8 {[%clk 0:00:17]}  Kxf4 {[%clk 0:00:33]} 54. Rxh6 {[%clk 0:00:17]}  Kg5 {[%clk 0:00:34]} 55. Rh8 {[%clk 0:00:16]}  f5 {[%clk 0:00:34]} 56. Rg8+ {[%clk 0:00:15]}  Kf6 {[%clk 0:00:35]} 57. Rg3 {[%clk 0:00:15]}  Ra1 {[%clk 0:00:34]} 58. h4 {[%clk 0:00:15]}  Ra4 {[%clk 0:00:35]} 59. Kh3 {[%clk 0:00:14]}  Rf4 {[%clk 0:00:34]} 60. f3 {[%clk 0:00:13]}  Ra4 {[%clk 0:00:35]} 61. h5 {[%clk 0:00:13]}  Ra1 {[%clk 0:00:35]} 62. Kh2 {[%clk 0:00:12]}  Ra2+ {[%clk 0:00:35]} 63. Kh3 {[%clk 0:00:12]}  Ra8 {[%clk 0:00:34]} 64. Kh4 {[%clk 0:00:12]}  Ra1 {[%clk 0:00:32]} 65. Rh3 {[%clk 0:00:09]}  Rg1 {[%clk 0:00:29]} 66. Rh2 {[%clk 0:00:07]}  f4 {[%clk 0:00:28]} 67. Rh3 {[%clk 0:00:07]}  Kf5 {[%clk 0:00:27]} 68. Rh2 {[%clk 0:00:07]}  Rg3 {[%clk 0:00:23]} 69. Rf2 {[%clk 0:00:06]}  f6 {[%clk 0:00:20]} 70. Rf1 {[%clk 0:00:06]}  Rg2 {[%clk 0:00:17]} 71. Kh3 {[%clk 0:00:06]}  Rg3+ {[%clk 0:00:14]} 72. Kh4 {[%clk 0:00:06]}  Ke6 {[%clk 0:00:14]} 73. Re1+ {[%clk 0:00:05]}  Kf7 {[%clk 0:00:14]} 74. Rf1 {[%clk 0:00:05]}  Kg7 {[%clk 0:00:15]} 75. Re1 {[%clk 0:00:04]}  Rxf3 {[%clk 0:00:14]} 76. Kg4 {[%clk 0:00:04]}  Rf2 {[%clk 0:00:14]} 77. Re4 {[%clk 0:00:03]}  f3 {[%clk 0:00:13]} 78. Rf4 {[%clk 0:00:04]}  Rh2 {[%clk 0:00:10]} 79. Rxf3 {[%clk 0:00:03]}  Rg2+ {[%clk 0:00:10]} 80. Rg3 {[%clk 0:00:03]}  Rf2 {[%clk 0:00:11]} 81. Rf3 {[%clk 0:00:03]}  Rb2 {[%clk 0:00:10]} 82. Kh4 {[%clk 0:00:03]}  Rb4+ {[%clk 0:00:09]} 83. Kh3 {[%clk 0:00:03]}  Ra4 {[%clk 0:00:10]} 84. Rf2 {[%clk 0:00:03]}  Ra3+ {[%clk 0:00:09]} 85. Kg4 {[%clk 0:00:02]}  Ra4+ {[%clk 0:00:10]} 86. Kh3 {[%clk 0:00:03]}  Ra5 {[%clk 0:00:11]} 87. Kg4 {[%clk 0:00:03]}  Rg5+ {[%clk 0:00:11]} 88. Kh4 {[%clk 0:00:03]}  Re5 {[%clk 0:00:12]} 89. Rf4 {[%clk 0:00:03]}  Re6 {[%clk 0:00:11]} 90. Rg4+ {[%clk 0:00:04]}  Kh7 {[%clk 0:00:11]} 91. Rg6 {[%clk 0:00:04]}  Re4+ {[%clk 0:00:12]} 92. Rg4 {[%clk 0:00:04]}  Re1 {[%clk 0:00:11]} 93. Rg6 {[%clk 0:00:05]}  Rh1+ {[%clk 0:00:11]} 94. Kg4 {[%clk 0:00:05]}  Rf1 {[%clk 0:00:12]} 95. Kh4 {[%clk 0:00:03]}  Rf4+ {[%clk 0:00:12]} 96. Kh3 {[%clk 0:00:03]}  Rf5 {[%clk 0:00:12]} 97. Kh4 {[%clk 0:00:03]}  Rf1 {[%clk 0:00:11]} 98. Rg3 {[%clk 0:00:04]}  f5 {[%clk 0:00:11]} 99. Kg5 {[%clk 0:00:03]}  f4 {[%clk 0:00:12]} 100. Rg4 {[%clk 0:00:03]}  f3 {[%clk 0:00:13]} 101. Rf4 {[%clk 0:00:04]}  f2 {[%clk 0:00:12]} 102. Kf6 {[%clk 0:00:04]}  Kh6 {[%clk 0:00:13]} 103. Rf5 {[%clk 0:00:04]}  Kh7 {[%clk 0:00:10]} 104. Kf7 {[%clk 0:00:04]}  Kh8 {[%clk 0:00:10]} 105. Kf6 {[%clk 0:00:04]}  Kg8 {[%clk 0:00:10]} 106. h6 {[%clk 0:00:04]}  Kh7 {[%clk 0:00:10]} 107. Rf3 {[%clk 0:00:04]}  Kh8 {[%clk 0:00:07]} 108. Kf5 {[%clk 0:00:05]}  Kg8 {[%clk 0:00:07]} 109. Kf4 {[%clk 0:00:05]}  Kh7 {[%clk 0:00:07]} 110. Kg3 {[%clk 0:00:06]}  Rb1 {[%clk 0:00:07]} 111. Kxf2 {[%clk 0:00:06]}  Kxh6 {[%clk 0:00:08]} 112. Kg3 {[%clk 0:00:07]}  Rb2 {[%clk 0:00:08]} 113. Re3 {[%clk 0:00:07]}  Rb6 {[%clk 0:00:09]} 114. Rf3 {[%clk 0:00:07]}  Rg6+ {[%clk 0:00:10]} 115. Kh3 {[%clk 0:00:08]}  Rc6 {[%clk 0:00:11]} 116. Rg3 {[%clk 0:00:08]}  Kh5 {[%clk 0:00:11]} 117. Rf3 {[%clk 0:00:08]}  Rd6 {[%clk 0:00:11]} 118. Rf5+ {[%clk 0:00:08]}  Kg6 {[%clk 0:00:11]} 119. Rf3 {[%clk 0:00:09]}  Rb6 {[%clk 0:00:12]} 120. Rg3+ {[%clk 0:00:09]}  Kf5 {[%clk 0:00:11]} 121. Rf3+ {[%clk 0:00:10]}  Ke4 {[%clk 0:00:12]} 122. Rg3 {[%clk 0:00:10]}  Kf4 {[%clk 0:00:13]} 123. Rg4+ {[%clk 0:00:11]}  Kf3 {[%clk 0:00:14]} 124. Rg3+ {[%clk 0:00:12]}  Kf2 {[%clk 0:00:15]} 125. Rg2+ {[%clk 0:00:12]}  Kf1 {[%clk 0:00:15]} 126. Rg3 {[%clk 0:00:13]}  Rh6+ {[%clk 0:00:16]} 127. Kg4 {[%clk 0:00:13]}  Rh8 {[%clk 0:00:17]} 128. Kf5 {[%clk 0:00:13]}  Kf2 {[%clk 0:00:17]} 129. Rg6 {[%clk 0:00:12]}  Ke3 {[%clk 0:00:17]} 130. Rf6 {[%clk 0:00:13]}  Rh1 {[%clk 0:00:16]} 131. Kg6 {[%clk 0:00:13]}  Ke4 {[%clk 0:00:17]} 132. Kf7 {[%clk 0:00:13]}  Kd5 {[%clk 0:00:16]} 133. Rg6 {[%clk 0:00:14]}  Rh7+ {[%clk 0:00:17]} 134. Kf6 {[%clk 0:00:14]}  Rh3 {[%clk 0:00:18]} 135. Rg5+ {[%clk 0:00:14]}  Ke4 {[%clk 0:00:17]} 136. Rg6 {[%clk 0:00:14]}  Rb3 {[%clk 0:00:17]} 137. Rg4+ {[%clk 0:00:13]}  Kd5 {[%clk 0:00:16]} 138. Rg5+ {[%clk 0:00:14]}  Ke4 {[%clk 0:00:16]} 139. Rg4+ {[%clk 0:00:14]}  Kf3 {[%clk 0:00:16]} 140. Rg5 {[%clk 0:00:14]} 1/2-1/2


[Site "https://www.chess.com"]

[Event "Titled Tuesday Blitz January 17 Early 2023"]
[White "Tanenbaum, Zachary"]
[Black "Renjith, Sravan"]
[WhiteFideId "2060850"]
[BlackFideId "4306783"]
[WhiteElo "2261"]
[BlackElo "2172"]
[Result "0-1"]
[Round "04"]
[TimeControl "180+2"]
[Date "2023.01.17"]
[WhiteClock "0:00:04"]
[BlackClock "0:00:02"]

1. e4 {[%clk 0:03:00]}  e5 {[%clk 0:02:59]} 2. Nf3 {[%clk 0:03:01]}  Nc6 {[%clk 0:02:59]} 3. Bc4 {[%clk 0:03:02]}  Nf6 {[%clk 0:02:58]} 4. d3 {[%clk 0:03:02]}  Bc5 {[%clk 0:02:58]} 5. c3 {[%clk 0:03:02]}  O-O {[%clk 0:02:58]} 6. Nbd2 {[%clk 0:03:02]}  d5 {[%clk 0:02:56]} 7. exd5 {[%clk 0:03:02]}  Nxd5 {[%clk 0:02:56]} 8. Ne4 {[%clk 0:03:02]}  Be7 {[%clk 0:02:54]} 9. O-O {[%clk 0:03:02]}  h6 {[%clk 0:02:48]} 10. Re1 {[%clk 0:03:01]}  Be6 {[%clk 0:02:48]} 11. h3 {[%clk 0:02:59]}  Qd7 {[%clk 0:02:45]} 12. Bb5 {[%clk 0:02:57]}  Bd6 {[%clk 0:02:25]} 13. c4 {[%clk 0:02:54]}  Nf4 {[%clk 0:02:11]} 14. c5 {[%clk 0:02:51]}  Be7 {[%clk 0:01:35]} 15. Bxc6 {[%clk 0:02:49]}  Qxc6 {[%clk 0:01:07]} 16. Nxe5 {[%clk 0:02:49]}  Nxh3+ {[%clk 0:01:08]} 17. gxh3 {[%clk 0:02:49]}  Qd5 {[%clk 0:01:08]} 18. Bf4 {[%clk 0:01:31]}  Bxh3 {[%clk 0:00:55]} 19. Qf3 {[%clk 0:01:31]}  Be6 {[%clk 0:00:55]} 20. Qg3 {[%clk 0:01:23]}  Kh7 {[%clk 0:00:47]} 21. b4 {[%clk 0:01:08]}  Rad8 {[%clk 0:00:33]} 22. Kh2 {[%clk 0:00:59]}  g5 {[%clk 0:00:30]} 23. Nxg5+ {[%clk 0:00:35]}  Bxg5 {[%clk 0:00:24]} 24. Bxg5 {[%clk 0:00:36]}  Rg8 {[%clk 0:00:15]} 25. f4 {[%clk 0:00:22]}  hxg5 {[%clk 0:00:10]} 26. fxg5 {[%clk 0:00:23]}  Kg7 {[%clk 0:00:09]} 27. Qf4 {[%clk 0:00:21]}  Rh8+ {[%clk 0:00:09]} 28. Kg3 {[%clk 0:00:21]}  Rh3+ {[%clk 0:00:09]} 29. Kf2 {[%clk 0:00:21]}  Rdh8 {[%clk 0:00:07]} 30. Qf6+ {[%clk 0:00:16]}  Kg8 {[%clk 0:00:06]} 31. Nf3 {[%clk 0:00:12]}  R8h5 {[%clk 0:00:02]} 32. Qe5 {[%clk 0:00:05]}  Qxf3+ {[%clk 0:00:01]} 33. Kg1 {[%clk 0:00:04]}  Rh1# {[%clk 0:00:02]} 0-1


[Site "https://www.chess.com"]

[Event "Titled Tuesday Blitz January 17 Early 2023"]
[White "Gurvich, Vitaly"]
[Black "Martin Carmona, Gaston Manuel"]
[WhiteFideId "24164852"]
[BlackFideId "22284567"]
[WhiteElo "2278"]
[BlackElo "2333"]
[Result "1/2-1/2"]
[Round "04"]
[TimeControl "180+2"]
[Date "2023.01.17"]
[WhiteClock "0:00:22"]
[BlackClock "0:00:35"]

1. e4 {[%clk 0:03:00]}  c5 {[%clk 0:02:59]} 2. Nf3 {[%clk 0:02:58]}  d6 {[%clk 0:03:00]} 3. d4 {[%clk 0:02:57]}  cxd4 {[%clk 0:03:01]} 4. Nxd4 {[%clk 0:02:57]}  Nf6 {[%clk 0:03:01]} 5. Nc3 {[%clk 0:02:56]}  g6 {[%clk 0:03:02]} 6. Nf3 {[%clk 0:02:55]}  Nc6 {[%clk 0:03:01]} 7. Bb5 {[%clk 0:02:54]}  Bd7 {[%clk 0:03:01]} 8. O-O {[%clk 0:02:53]}  Bg7 {[%clk 0:02:59]} 9. h3 {[%clk 0:02:53]}  O-O {[%clk 0:02:59]} 10. Re1 {[%clk 0:02:52]}  a6 {[%clk 0:02:59]} 11. Bf1 {[%clk 0:02:52]}  Rc8 {[%clk 0:02:58]} 12. a4 {[%clk 0:02:52]}  Na5 {[%clk 0:02:55]} 13. Nd4 {[%clk 0:02:45]}  Nc4 {[%clk 0:02:54]} 14. Nb3 {[%clk 0:02:41]}  Be6 {[%clk 0:02:50]} 15. a5 {[%clk 0:02:39]}  Nd7 {[%clk 0:02:42]} 16. Nd4 {[%clk 0:02:37]}  Bxd4 {[%clk 0:02:33]} 17. Qxd4 {[%clk 0:02:37]}  Nxa5 {[%clk 0:02:28]} 18. b3 {[%clk 0:02:34]}  Nc6 {[%clk 0:02:23]} 19. Qd2 {[%clk 0:02:34]}  Nf6 {[%clk 0:02:19]} 20. Bb2 {[%clk 0:02:33]}  Nb4 {[%clk 0:02:19]} 21. Rac1 {[%clk 0:02:30]}  a5 {[%clk 0:02:01]} 22. Qd4 {[%clk 0:02:19]}  Qd7 {[%clk 0:01:49]} 23. f4 {[%clk 0:02:13]}  Qc7 {[%clk 0:01:46]} 24. e5 {[%clk 0:02:12]}  dxe5 {[%clk 0:01:45]} 25. fxe5 {[%clk 0:02:13]}  Nd7 {[%clk 0:01:44]} 26. Qf4 {[%clk 0:02:10]}  f6 {[%clk 0:01:29]} 27. Nb5 {[%clk 0:02:08]}  Qb6+ {[%clk 0:01:12]} 28. Bd4 {[%clk 0:02:03]}  fxe5 {[%clk 0:01:12]} 29. Qxf8+ {[%clk 0:02:02]}  Rxf8 {[%clk 0:01:09]} 30. Bxb6 {[%clk 0:02:02]}  Nxb6 {[%clk 0:01:10]} 31. Rxe5 {[%clk 0:02:01]}  Bd7 {[%clk 0:01:01]} 32. Rxe7 {[%clk 0:01:58]}  N4d5 {[%clk 0:00:58]} 33. Re5 {[%clk 0:01:39]}  Bc6 {[%clk 0:00:58]} 34. Nd4 {[%clk 0:01:38]}  Kg7 {[%clk 0:00:58]} 35. Nxc6 {[%clk 0:01:36]}  bxc6 {[%clk 0:00:59]} 36. c4 {[%clk 0:01:36]}  Nb4 {[%clk 0:00:58]} 37. Rxa5 {[%clk 0:01:35]}  Kh6 {[%clk 0:00:56]} 38. Rd1 {[%clk 0:01:31]}  Rf6 {[%clk 0:00:55]} 39. Re5 {[%clk 0:01:25]}  Nc2 {[%clk 0:00:48]} 40. c5 {[%clk 0:01:23]}  Nd5 {[%clk 0:00:47]} 41. Bc4 {[%clk 0:01:21]}  Nde3 {[%clk 0:00:47]} 42. Re1 {[%clk 0:01:19]}  Nxc4 {[%clk 0:00:32]} 43. bxc4 {[%clk 0:01:20]}  Nxe1 {[%clk 0:00:32]} 44. Rxe1 {[%clk 0:01:17]}  Rf5 {[%clk 0:00:32]} 45. Re4 {[%clk 0:01:16]}  Rxc5 {[%clk 0:00:33]} 46. Kf2 {[%clk 0:01:16]}  Kg5 {[%clk 0:00:33]} 47. Ke3 {[%clk 0:01:16]}  Kf5 {[%clk 0:00:34]} 48. g4+ {[%clk 0:01:15]}  Kg5 {[%clk 0:00:33]} 49. Kd4 {[%clk 0:01:15]}  Ra5 {[%clk 0:00:32]} 50. Re5+ {[%clk 0:01:15]}  Rxe5 {[%clk 0:00:30]} 51. Kxe5 {[%clk 0:01:16]}  h5 {[%clk 0:00:30]} 52. gxh5 {[%clk 0:00:42]}  gxh5 {[%clk 0:00:31]} 53. c5 {[%clk 0:00:37]}  Kh4 {[%clk 0:00:32]} 54. Kd6 {[%clk 0:00:38]}  Kxh3 {[%clk 0:00:32]} 55. Kxc6 {[%clk 0:00:39]}  Kg2 {[%clk 0:00:32]} 56. Kd6 {[%clk 0:00:22]}  h4 {[%clk 0:00:33]} 57. c6 {[%clk 0:00:22]}  h3 {[%clk 0:00:33]} 58. c7 {[%clk 0:00:23]}  h2 {[%clk 0:00:34]} 59. c8=Q {[%clk 0:00:23]}  h1=Q {[%clk 0:00:34]} 60. Qc6+ {[%clk 0:00:21]}  Kg1 {[%clk 0:00:34]} 61. Qxh1+ {[%clk 0:00:22]}  Kxh1 {[%clk 0:00:35]} 1/2-1/2


[Site "https://www.chess.com"]

[Event "Titled Tuesday Blitz January 17 Early 2023"]
[White "Kopczynski, Michal"]
[Black "Sipila, Vilka"]
[WhiteFideId "1124200"]
[BlackFideId "505455"]
[WhiteElo "2225"]
[BlackElo "2427"]
[Result "1-0"]
[Round "04"]
[TimeControl "180+2"]
[Date "2023.01.17"]
[WhiteClock "0:00:16"]
[BlackClock "0:00:02"]

1. e4 {[%clk 0:03:00]}  e6 {[%clk 0:02:59]} 2. d4 {[%clk 0:03:01]}  d5 {[%clk 0:02:59]} 3. Nc3 {[%clk 0:03:01]}  Bb4 {[%clk 0:02:57]} 4. e5 {[%clk 0:03:02]}  c5 {[%clk 0:02:57]} 5. dxc5 {[%clk 0:03:02]}  Qc7 {[%clk 0:02:48]} 6. f4 {[%clk 0:03:02]}  Nd7 {[%clk 0:02:33]} 7. Nf3 {[%clk 0:03:01]}  Nxc5 {[%clk 0:02:30]} 8. Bd3 {[%clk 0:03:00]}  Na4 {[%clk 0:02:24]} 9. O-O {[%clk 0:02:49]}  Nxc3 {[%clk 0:02:15]} 10. bxc3 {[%clk 0:02:50]}  Bxc3 {[%clk 0:02:16]} 11. Rb1 {[%clk 0:02:48]}  Ba5 {[%clk 0:02:09]} 12. Kh1 {[%clk 0:02:36]}  Bb6 {[%clk 0:02:03]} 13. Ba3 {[%clk 0:02:29]}  Bc5 {[%clk 0:02:02]} 14. Bb5+ {[%clk 0:02:25]}  Kf8 {[%clk 0:02:02]} 15. Bxc5+ {[%clk 0:02:02]}  Qxc5 {[%clk 0:02:03]} 16. Nd4 {[%clk 0:01:52]}  Nh6 {[%clk 0:02:00]} 17. c4 {[%clk 0:01:25]}  a6 {[%clk 0:01:56]} 18. cxd5 {[%clk 0:01:08]}  axb5 {[%clk 0:01:56]} 19. Rxb5 {[%clk 0:01:09]}  Qc4 {[%clk 0:01:53]} 20. dxe6 {[%clk 0:01:07]}  fxe6 {[%clk 0:01:27]} 21. Rb2 {[%clk 0:00:49]}  Rxa2 {[%clk 0:01:12]} 22. Nxe6+ {[%clk 0:00:27]}  Bxe6 {[%clk 0:01:11]} 23. Rxa2 {[%clk 0:00:25]}  Qxa2 {[%clk 0:01:00]} 24. Qd8+ {[%clk 0:00:25]}  Kf7 {[%clk 0:01:01]} 25. Qxh8 {[%clk 0:00:25]}  Bd5 {[%clk 0:00:58]} 26. e6+ {[%clk 0:00:19]}  Bxe6 {[%clk 0:00:39]} 27. f5 {[%clk 0:00:19]}  Bd5 {[%clk 0:00:38]} 28. Rg1 {[%clk 0:00:18]}  Ng4 {[%clk 0:00:37]} 29. h3 {[%clk 0:00:18]}  Bxg2+ {[%clk 0:00:26]} 30. Rxg2 {[%clk 0:00:17]}  Qb1+ {[%clk 0:00:27]} 31. Rg1 {[%clk 0:00:17]}  Qe4+ {[%clk 0:00:27]} 32. Rg2 {[%clk 0:00:17]}  Qe1+ {[%clk 0:00:06]} 33. Rg1 {[%clk 0:00:17]}  Nf2+ {[%clk 0:00:05]} 34. Kg2 {[%clk 0:00:17]}  Qe2 {[%clk 0:00:04]} 35. Kg3 {[%clk 0:00:15]}  Ne4+ {[%clk 0:00:02]} 36. Kf4 {[%clk 0:00:15]}  Qf2+ {[%clk 0:00:01]} 37. Kxe4 {[%clk 0:00:16]}  Qxg1 {[%clk 0:00:02]} 38. Qxh7 {[%clk 0:00:16]} 1-0


[Site "https://www.chess.com"]

[Event "Titled Tuesday Blitz January 17 Early 2023"]
[White "Ashraf, Artin"]
[Black "Kuznetsov, Mikhail"]
[WhiteFideId "22514805"]
[BlackFideId "4117190"]
[WhiteElo "2314"]
[BlackElo "2050"]
[Result "1-0"]
[Round "04"]
[TimeControl "180+2"]
[Date "2023.01.17"]
[WhiteClock "0:00:25"]
[BlackClock "0:00:25"]

1. e4 {[%clk 0:02:56]}  c6 {[%clk 0:02:59]} 2. Nc3 {[%clk 0:02:53]}  d5 {[%clk 0:02:58]} 3. Qe2 {[%clk 0:02:54]}  dxe4 {[%clk 0:02:58]} 4. Nxe4 {[%clk 0:02:53]}  Nf6 {[%clk 0:02:48]} 5. Nxf6+ {[%clk 0:02:51]}  gxf6 {[%clk 0:02:49]} 6. Nf3 {[%clk 0:02:52]}  Bf5 {[%clk 0:02:48]} 7. d4 {[%clk 0:02:50]}  e6 {[%clk 0:02:47]} 8. g3 {[%clk 0:02:49]}  Na6 {[%clk 0:02:46]} 9. c3 {[%clk 0:02:43]}  Nc7 {[%clk 0:02:43]} 10. Bg2 {[%clk 0:02:42]}  Be7 {[%clk 0:02:38]} 11. O-O {[%clk 0:02:41]}  Bg4 {[%clk 0:02:35]} 12. Rd1 {[%clk 0:02:32]}  f5 {[%clk 0:02:30]} 13. b3 {[%clk 0:02:06]}  Qd5 {[%clk 0:02:02]} 14. h3 {[%clk 0:02:02]}  Bxf3 {[%clk 0:01:42]} 15. Bxf3 {[%clk 0:02:02]}  Qd7 {[%clk 0:01:43]} 16. c4 {[%clk 0:01:58]}  O-O-O {[%clk 0:01:42]} 17. Bf4 {[%clk 0:01:50]}  Bd6 {[%clk 0:01:35]} 18. Be5 {[%clk 0:01:31]}  Bxe5 {[%clk 0:01:30]} 19. dxe5 {[%clk 0:01:30]}  Qe7 {[%clk 0:01:29]} 20. Qe3 {[%clk 0:01:29]}  Kb8 {[%clk 0:01:26]} 21. a4 {[%clk 0:01:24]}  Na6 {[%clk 0:01:25]} 22. Kg2 {[%clk 0:00:55]}  Qc5 {[%clk 0:01:21]} 23. Qg5 {[%clk 0:00:52]}  Kc8 {[%clk 0:01:16]} 24. Qf6 {[%clk 0:00:50]}  Nb4 {[%clk 0:00:56]} 25. Qxf7 {[%clk 0:00:44]}  Rxd1 {[%clk 0:00:53]} 26. Rxd1 {[%clk 0:00:42]}  Qxe5 {[%clk 0:00:52]} 27. Rd7 {[%clk 0:00:34]}  Rd8 {[%clk 0:00:24]} 28. Rxd8+ {[%clk 0:00:24]}  Kxd8 {[%clk 0:00:25]} 29. Qf8+ {[%clk 0:00:25]} 1-0


[Site "https://www.chess.com"]

[Event "Titled Tuesday Blitz January 17 Early 2023"]
[White "Tan, Zhongyi"]
[Black "Tymrakiewicz, Rafal"]
[WhiteFideId "8603642"]
[BlackFideId "1108832"]
[WhiteElo "2517"]
[BlackElo "2144"]
[Result "1-0"]
[Round "04"]
[TimeControl "180+2"]
[Date "2023.01.17"]
[WhiteClock "0:00:50"]
[BlackClock "0:00:14"]

1. d4 {[%clk 0:03:00]}  Nf6 {[%clk 0:02:58]} 2. c4 {[%clk 0:03:00]}  d6 {[%clk 0:02:59]} 3. Nf3 {[%clk 0:02:58]}  Nc6 {[%clk 0:02:58]} 4. d5 {[%clk 0:02:56]}  Ne5 {[%clk 0:02:58]} 5. Nxe5 {[%clk 0:02:56]}  dxe5 {[%clk 0:02:59]} 6. Nc3 {[%clk 0:02:57]}  e6 {[%clk 0:02:59]} 7. e4 {[%clk 0:02:55]}  exd5 {[%clk 0:02:57]} 8. exd5 {[%clk 0:02:55]}  Bc5 {[%clk 0:02:55]} 9. Be2 {[%clk 0:02:55]}  O-O {[%clk 0:02:54]} 10. Bg5 {[%clk 0:02:51]}  h6 {[%clk 0:02:51]} 11. Bh4 {[%clk 0:02:49]}  Bf5 {[%clk 0:02:42]} 12. Qd2 {[%clk 0:02:47]}  Bb4 {[%clk 0:02:35]} 13. a3 {[%clk 0:02:40]}  Bxc3 {[%clk 0:01:52]} 14. Qxc3 {[%clk 0:02:41]}  Re8 {[%clk 0:01:50]} 15. Qf3 {[%clk 0:02:27]}  Bg4 {[%clk 0:01:28]} 16. Qxg4 {[%clk 0:02:24]}  Nxg4 {[%clk 0:01:10]} 17. Bxd8 {[%clk 0:02:25]}  Nxf2 {[%clk 0:01:11]} 18. Kxf2 {[%clk 0:02:23]}  Raxd8 {[%clk 0:01:11]} 19. g4 {[%clk 0:02:16]}  g6 {[%clk 0:01:07]} 20. Rhg1 {[%clk 0:02:14]}  Rd6 {[%clk 0:01:02]} 21. Ke3 {[%clk 0:02:13]}  a5 {[%clk 0:00:54]} 22. Rad1 {[%clk 0:02:10]}  Rb6 {[%clk 0:00:52]} 23. b4 {[%clk 0:02:01]}  axb4 {[%clk 0:00:51]} 24. c5 {[%clk 0:02:01]}  Rf6 {[%clk 0:00:50]} 25. axb4 {[%clk 0:02:00]}  Rf4 {[%clk 0:00:45]} 26. b5 {[%clk 0:01:55]}  Kf8 {[%clk 0:00:34]} 27. d6 {[%clk 0:01:38]}  cxd6 {[%clk 0:00:32]} 28. Rxd6 {[%clk 0:00:57]}  Ra8 {[%clk 0:00:32]} 29. Rgd1 {[%clk 0:00:54]}  Ra3+ {[%clk 0:00:28]} 30. R1d3 {[%clk 0:00:53]}  Rxd3+ {[%clk 0:00:29]} 31. Bxd3 {[%clk 0:00:54]}  Ke7 {[%clk 0:00:29]} 32. Rb6 {[%clk 0:00:52]}  Rxg4 {[%clk 0:00:26]} 33. Rxb7+ {[%clk 0:00:52]}  Ke8 {[%clk 0:00:24]} 34. c6 {[%clk 0:00:52]}  Kd8 {[%clk 0:00:15]} 35. b6 {[%clk 0:00:52]}  Rb4 {[%clk 0:00:13]} 36. c7+ {[%clk 0:00:51]}  Kd7 {[%clk 0:00:14]} 37. Rb8 {[%clk 0:00:50]} 1-0


[Site "https://www.chess.com"]